[Event "Early-Titled-Tuesday-Blitz-April-16-2024"]
[Site "Chess.com"]
[Date "2024.04.16"]
[Round "11"]
[White "ValentunHulka"]
[Black "klercaku"]
[Result "0-1"]
[WhiteElo "2761"]
[BlackElo "2269"]
[TimeControl "180+1"]
[EndTime "10:13:32 PDT"]
[Termination "klercaku won by checkmate"]

1. a3 {[%clk 0:03:00.9]} 1... d5 {[%clk 0:02:55.5]} 2. e3 {[%clk 0:02:55.8]}
2... e6 {[%clk 0:02:55.6]} 3. d4 {[%clk 0:02:53.5]} 3... Nf6 {[%clk 0:02:56]} 4.
Nf3 {[%clk 0:02:53.9]} 4... Nbd7 {[%clk 0:02:56.5]} 5. Nbd2 {[%clk 0:02:51.1]}
5... c5 {[%clk 0:02:57]} 6. dxc5 {[%clk 0:02:51.4]} 6... Bxc5 {[%clk 0:02:57.1]}
7. b4 {[%clk 0:02:51.5]} 7... Be7 {[%clk 0:02:46.5]} 8. Bb2 {[%clk 0:02:51.5]}
8... O-O {[%clk 0:02:45.6]} 9. c4 {[%clk 0:02:52.1]} 9... dxc4 {[%clk
0:02:44.2]} 10. Nxc4 {[%clk 0:02:51.5]} 10... Nb6 {[%clk 0:02:44.7]} 11. Qb3
{[%clk 0:02:47.5]} 11... Nxc4 {[%clk 0:02:41]} 12. Bxc4 {[%clk 0:02:48.4]} 12...
a5 {[%clk 0:02:31]} 13. O-O {[%clk 0:02:45.2]} 13... axb4 {[%clk 0:02:23.4]} 14.
axb4 {[%clk 0:02:46.1]} 14... Bd7 {[%clk 0:02:23.7]} 15. Rfd1 {[%clk 0:02:38.9]}
15... Qb6 {[%clk 0:02:20.4]} 16. Rxa8 {[%clk 0:02:28.5]} 16... Rxa8 {[%clk
0:02:19.4]} 17. Bxf6 {[%clk 0:02:28.9]} 17... Ba4 {[%clk 0:01:58.3]} 18. Ra1
{[%clk 0:01:35.9]} 18... Bxb3 {[%clk 0:00:53.7]} 19. Rxa8+ {[%clk 0:01:36.3]}
19... Bf8 {[%clk 0:00:54.1]} 20. Be7 {[%clk 0:01:36.8]} 20... h6 {[%clk
0:00:44.5]} 21. Bxf8 {[%clk 0:01:12.8]} 21... Kh7 {[%clk 0:00:30.6]} 22. Bxb3
{[%clk 0:01:04.6]} 22... Qc6 {[%clk 0:00:20.3]} 23. h3 {[%clk 0:01:02.3]} 23...
b6 {[%clk 0:00:15.2]} 24. Ra1 {[%clk 0:00:51.4]} 24... Kg8 {[%clk 0:00:11.8]}
25. b5 {[%clk 0:00:28.8]} 25... Qc3 {[%clk 0:00:09.1]} 26. Rb1 {[%clk
0:00:20.4]} 26... Kxf8 {[%clk 0:00:08.1]} 27. Nd4 {[%clk 0:00:19.2]} 27... Kg8
{[%clk 0:00:04.5]} 28. Nc6 {[%clk 0:00:12]} 28... Qd3 {[%clk 0:00:03.6]} 29. Rb2
{[%clk 0:00:11.2]} 29... Qc3 {[%clk 0:00:03.4]} 30. Rb1 {[%clk 0:00:09.3]} 30...
Qd3 {[%clk 0:00:02.9]} 31. Ba2 {[%clk 0:00:06.1]} 31... Qc4 {[%clk 0:00:02.1]}
32. Nb4 {[%clk 0:00:06.8]} 32... Qc5 {[%clk 0:00:01.9]} 33. h4 {[%clk
0:00:03.6]} 33... Qxb5 {[%clk 0:00:02]} 34. g3 {[%clk 0:00:04.1]} 34... Qc5
{[%clk 0:00:02.3]} 35. Kg2 {[%clk 0:00:04.7]} 35... Qc3 {[%clk 0:00:02.4]} 36.
Rb3 {[%clk 0:00:04.8]} 36... Qc5 {[%clk 0:00:02.7]} 37. h5 {[%clk 0:00:05.3]}
37... Qb5 {[%clk 0:00:02.5]} 38. g4 {[%clk 0:00:05.1]} 38... Qc5 {[%clk
0:00:03]} 39. Rb2 {[%clk 0:00:04.9]} 39... Qb5 {[%clk 0:00:03]} 40. Kg3 {[%clk
0:00:04.9]} 40... Qa5 {[%clk 0:00:03.6]} 41. f3 {[%clk 0:00:05.3]} 41... Qa3
{[%clk 0:00:04.2]} 42. Rb3 {[%clk 0:00:05.3]} 42... Qc1 {[%clk 0:00:04]} 43. Kg2
{[%clk 0:00:03.7]} 43... Qd2+ {[%clk 0:00:03.2]} 44. Kg3 {[%clk 0:00:03.9]}
44... Qd6+ {[%clk 0:00:03.4]} 45. f4 {[%clk 0:00:04.1]} 45... Qd1 {[%clk
0:00:02.7]} 46. Kf2 {[%clk 0:00:04.1]} 46... Qd2+ {[%clk 0:00:03]} 47. Kf3
{[%clk 0:00:04.6]} 47... Qe1 {[%clk 0:00:02.8]} 48. Rb2 {[%clk 0:00:03.6]} 48...
Qf1+ {[%clk 0:00:02.8]} 49. Rf2 {[%clk 0:00:03.8]} 49... Qd1+ {[%clk 0:00:02.9]}
50. Kg3 {[%clk 0:00:03.7]} 50... Qg1+ {[%clk 0:00:03]} 51. Kf3 {[%clk
0:00:03.7]} 51... Qh1+ {[%clk 0:00:03.2]} 52. Ke2 {[%clk 0:00:02.4]} 52... Qa1
{[%clk 0:00:03]} 53. Kf3 {[%clk 0:00:01.7]} 53... Qc3 {[%clk 0:00:02.7]} 54. Nc2
{[%clk 0:00:01.5]} 54... Qc6+ {[%clk 0:00:02.7]} 55. Kg3 {[%clk 0:00:01.7]}
55... Qh1 {[%clk 0:00:03]} 56. Nd4 {[%clk 0:00:02.6]} 56... Qg1+ {[%clk
0:00:03.1]} 57. Kf3 {[%clk 0:00:03.5]} 57... Qd1+ {[%clk 0:00:03]} 58. Kg2
{[%clk 0:00:03.8]} 58... Qa1 {[%clk 0:00:03.4]} 59. Nf3 {[%clk 0:00:04.1]} 59...
Qc3 {[%clk 0:00:03.7]} 60. g5 {[%clk 0:00:04.3]} 60... b5 {[%clk 0:00:04]} 61.
gxh6 {[%clk 0:00:04.6]} 61... gxh6 {[%clk 0:00:04.9]} 62. Ne5 {[%clk 0:00:05.3]}
62... b4 {[%clk 0:00:04.8]} 63. Nf3 {[%clk 0:00:03.8]} 63... b3 {[%clk
0:00:04.4]} 64. Bb1 {[%clk 0:00:04.4]} 64... Qxe3 {[%clk 0:00:04.4]} 65. f5
{[%clk 0:00:04.1]} 65... exf5 {[%clk 0:00:04]} 66. Nh4 {[%clk 0:00:04.2]} 66...
Qg5+ {[%clk 0:00:03.5]} 67. Kh3 {[%clk 0:00:04.9]} 67... Qe3+ {[%clk 0:00:02.8]}
68. Rf3 {[%clk 0:00:04.8]} 68... Qe1 {[%clk 0:00:01.5]} 69. Bxf5 {[%clk
0:00:05]} 69... Kf8 {[%clk 0:00:01.8]} 70. Rxb3 {[%clk 0:00:04.9]} 70... Qh1+
{[%clk 0:00:02.2]} 71. Kg3 {[%clk 0:00:04.9]} 71... Qg1+ {[%clk 0:00:02.8]} 72.
Ng2 {[%clk 0:00:04.8]} 72... Qc1 {[%clk 0:00:02]} 73. Rf3 {[%clk 0:00:05.7]}
73... Kg7 {[%clk 0:00:02.3]} 74. Bg4 {[%clk 0:00:05.8]} 74... Qc7+ {[%clk
0:00:02.8]} 75. Kh3 {[%clk 0:00:06.2]} 75... f6 {[%clk 0:00:03.5]} 76. Nh4
{[%clk 0:00:07.1]} 76... Kf7 {[%clk 0:00:03.6]} 77. Nf5 {[%clk 0:00:08]} 77...
Qc1 {[%clk 0:00:03.7]} 78. Rg3 {[%clk 0:00:08.1]} 78... Qh1# {[%clk 0:00:03.7]}
0-1

[Event "Early-Titled-Tuesday-Blitz-April-16-2024"]
[Site "Chess.com"]
[Date "2024.04.16"]
[Round "11"]
[White "Donskov_AN"]
[Black "zverr1"]
[Result "1-0"]
[WhiteElo "2408"]
[BlackElo "2497"]
[TimeControl "180+1"]
[EndTime "10:13:53 PDT"]
[Termination "Donskov_AN won by checkmate"]

1. e4 {[%clk 0:03:00.9]} 1... d5 {[%clk 0:02:58.6]} 2. exd5 {[%clk 0:03:00.7]}
2... Qxd5 {[%clk 0:02:59.5]} 3. Nc3 {[%clk 0:03:00.9]} 3... Qa5 {[%clk 0:03:00]}
4. d4 {[%clk 0:03:00.7]} 4... Nf6 {[%clk 0:03:00.3]} 5. Bc4 {[%clk 0:03:00.6]}
5... Bf5 {[%clk 0:02:55.9]} 6. Nf3 {[%clk 0:03:00.1]} 6... Nc6 {[%clk
0:02:55.5]} 7. Bd2 {[%clk 0:02:28.8]} 7... O-O-O {[%clk 0:02:13.4]} 8. d5 {[%clk
0:01:56.6]} 8... Nb4 {[%clk 0:02:07.2]} 9. Nd4 {[%clk 0:01:56.9]} 9... Qc5
{[%clk 0:01:48.4]} 10. Nxf5 {[%clk 0:01:48.9]} 10... Qxc4 {[%clk 0:01:46.8]} 11.
Ne3 {[%clk 0:01:47.1]} 11... Qh4 {[%clk 0:01:14]} 12. Qf3 {[%clk 0:01:44.7]}
12... Qh5 {[%clk 0:00:41.5]} 13. Qxh5 {[%clk 0:01:42.7]} 13... Nxh5 {[%clk
0:00:42.4]} 14. a3 {[%clk 0:01:43.2]} 14... Na6 {[%clk 0:00:39]} 15. b4 {[%clk
0:01:43.8]} 15... Nb8 {[%clk 0:00:33.4]} 16. g3 {[%clk 0:01:43.2]} 16... Nd7
{[%clk 0:00:29.2]} 17. Nb5 {[%clk 0:01:41.2]} 17... a6 {[%clk 0:00:28.5]} 18.
Nd4 {[%clk 0:01:41.3]} 18... Nhf6 {[%clk 0:00:24.7]} 19. c4 {[%clk 0:01:40.7]}
19... e6 {[%clk 0:00:18.9]} 20. dxe6 {[%clk 0:01:40.1]} 20... Ne5 {[%clk
0:00:19.1]} 21. Bc3 {[%clk 0:01:36.1]} 21... Rxd4 {[%clk 0:00:17.2]} 22. Bxd4
{[%clk 0:01:31.1]} 22... Nf3+ {[%clk 0:00:16.7]} 23. Ke2 {[%clk 0:01:31.2]}
23... Nxd4+ {[%clk 0:00:17.6]} 24. Kd3 {[%clk 0:01:31.6]} 24... Nxe6 {[%clk
0:00:17.2]} 25. f4 {[%clk 0:01:28.7]} 25... Be7 {[%clk 0:00:13.7]} 26. Nf5
{[%clk 0:01:28.6]} 26... Rd8+ {[%clk 0:00:13.6]} 27. Kc2 {[%clk 0:01:26.8]}
27... Bf8 {[%clk 0:00:13.5]} 28. Rad1 {[%clk 0:01:25.8]} 28... g6 {[%clk
0:00:12.8]} 29. Rxd8+ {[%clk 0:01:25.2]} 29... Kxd8 {[%clk 0:00:13.7]} 30. Rd1+
{[%clk 0:01:24.8]} 30... Kc8 {[%clk 0:00:14.4]} 31. Ne3 {[%clk 0:01:24]} 31...
c6 {[%clk 0:00:11.5]} 32. c5 {[%clk 0:01:24.2]} 32... Kc7 {[%clk 0:00:08.7]} 33.
Nc4 {[%clk 0:01:24.7]} 33... Ne4 {[%clk 0:00:07.9]} 34. Ne5 {[%clk 0:01:21.9]}
34... N4xc5 {[%clk 0:00:02.5]} 35. bxc5 {[%clk 0:01:21.4]} 35... Nxc5 {[%clk
0:00:01.7]} 36. Nxf7 {[%clk 0:01:21.6]} 36... b5 {[%clk 0:00:01.9]} 37. Ne5
{[%clk 0:01:09]} 37... a5 {[%clk 0:00:02.4]} 38. Rd4 {[%clk 0:00:56.5]} 38...
Ne6 {[%clk 0:00:01.3]} 39. Re4 {[%clk 0:00:55.6]} 39... Kb6 {[%clk 0:00:01.6]}
40. Nxc6 {[%clk 0:00:53.3]} 40... Nc5 {[%clk 0:00:01.5]} 41. Re8 {[%clk
0:00:53.2]} 41... Bd6 {[%clk 0:00:01.4]} 42. Nd4 {[%clk 0:00:48.7]} 42... Na4
{[%clk 0:00:01.8]} 43. Kb3 {[%clk 0:00:46.7]} 43... Nc5+ {[%clk 0:00:02.1]} 44.
Ka2 {[%clk 0:00:46.4]} 44... Na4 {[%clk 0:00:02]} 45. Re6 {[%clk 0:00:44.1]}
45... Kc5 {[%clk 0:00:02.3]} 46. Nb3+ {[%clk 0:00:44.2]} 46... Kd5 {[%clk
0:00:02.7]} 47. Re1 {[%clk 0:00:41.4]} 47... Bc7 {[%clk 0:00:02.9]} 48. Rd1+
{[%clk 0:00:40.6]} 48... Ke4 {[%clk 0:00:03.4]} 49. Rd7 {[%clk 0:00:39.3]} 49...
Bb6 {[%clk 0:00:03.6]} 50. Rxh7 {[%clk 0:00:38.3]} 50... Nc3+ {[%clk 0:00:03.5]}
51. Kb2 {[%clk 0:00:31.5]} 51... Nd5 {[%clk 0:00:04.3]} 52. Nd2+ {[%clk
0:00:27.2]} 52... Kd3 {[%clk 0:00:04.4]} 53. Nf3 {[%clk 0:00:27]} 53... Ke3
{[%clk 0:00:01.5]} 54. Ne5 {[%clk 0:00:26.7]} 54... Bd4+ {[%clk 0:00:01.7]} 55.
Kc2 {[%clk 0:00:24.6]} 55... b4 {[%clk 0:00:01.7]} 56. axb4 {[%clk 0:00:24.6]}
56... axb4 {[%clk 0:00:01.6]} 57. Kb3 {[%clk 0:00:24.1]} 57... Ke4 {[%clk
0:00:01]} 58. Nxg6 {[%clk 0:00:22.5]} 58... Kf3 {[%clk 0:00:01.5]} 59. Ne7
{[%clk 0:00:21.6]} 59... Ne3 {[%clk 0:00:01.4]} 60. Kxb4 {[%clk 0:00:20.1]}
60... Nc2+ {[%clk 0:00:01.4]} 61. Kc4 {[%clk 0:00:20.2]} 61... Ba1 {[%clk
0:00:01.5]} 62. Nd5 {[%clk 0:00:17.7]} 62... Kg2 {[%clk 0:00:01.6]} 63. Kd3
{[%clk 0:00:14.1]} 63... Ne1+ {[%clk 0:00:01.9]} 64. Ke2 {[%clk 0:00:14.2]}
64... Nf3 {[%clk 0:00:02.8]} 65. Ne3+ {[%clk 0:00:14.1]} 65... Kh1 {[%clk
0:00:01.5]} 66. Kxf3 {[%clk 0:00:14]} 66... Bd4 {[%clk 0:00:01.7]} 67. Ng4
{[%clk 0:00:13.9]} 67... Kg1 {[%clk 0:00:01.2]} 68. h4 {[%clk 0:00:14.3]} 68...
Kh1 {[%clk 0:00:01.4]} 69. h5 {[%clk 0:00:15.2]} 69... Kg1 {[%clk 0:00:01.8]}
70. Rh6 {[%clk 0:00:15.6]} 70... Kh1 {[%clk 0:00:02.4]} 71. Rg6 {[%clk
0:00:16.5]} 71... Kg1 {[%clk 0:00:02.5]} 72. h6 {[%clk 0:00:17.4]} 72... Kh1
{[%clk 0:00:03]} 73. h7 {[%clk 0:00:18.3]} 73... Kg1 {[%clk 0:00:03.6]} 74. Ne5
{[%clk 0:00:19.2]} 74... Kh1 {[%clk 0:00:03.7]} 75. Nf7 {[%clk 0:00:20.1]} 75...
Kg1 {[%clk 0:00:03.1]} 76. g4 {[%clk 0:00:21]} 76... Kf1 {[%clk 0:00:02.6]} 77.
g5 {[%clk 0:00:21.9]} 77... Kg1 {[%clk 0:00:02.7]} 78. f5 {[%clk 0:00:22.8]}
78... Kh2 {[%clk 0:00:03.4]} 79. Kg4 {[%clk 0:00:23.7]} 79... Kg2 {[%clk
0:00:03.4]} 80. Kh5 {[%clk 0:00:24.6]} 80... Kh3 {[%clk 0:00:03.7]} 81. f6
{[%clk 0:00:25.5]} 81... Kg3 {[%clk 0:00:03.6]} 82. Nh6 {[%clk 0:00:26.4]} 82...
Kf4 {[%clk 0:00:04.1]} 83. Rg7 {[%clk 0:00:25.7]} 83... Ke5 {[%clk 0:00:04.2]}
84. h8=Q {[%clk 0:00:25.8]} 84... Be3 {[%clk 0:00:05.1]} 85. Qh7 {[%clk
0:00:26.7]} 85... Kf4 {[%clk 0:00:05.5]} 86. Qg6 {[%clk 0:00:27.6]} 86... Bd4
{[%clk 0:00:05.5]} 87. Rf7 {[%clk 0:00:28.5]} 87... Kg3 {[%clk 0:00:05.7]} 88.
Nf5+ {[%clk 0:00:29.4]} 88... Kh3 {[%clk 0:00:05.7]} 89. Ng7 {[%clk 0:00:30.3]}
89... Be3 {[%clk 0:00:05.9]} 90. Ne6 {[%clk 0:00:31.2]} 90... Kg3 {[%clk
0:00:05.5]} 91. Re7 {[%clk 0:00:32.1]} 91... Bxg5 {[%clk 0:00:05.4]} 92. f7
{[%clk 0:00:33]} 92... Kh3 {[%clk 0:00:05.3]} 93. f8=Q {[%clk 0:00:33.9]} 93...
Bxe7 {[%clk 0:00:05.2]} 94. Nf4+ {[%clk 0:00:33.9]} 94... Kh2 {[%clk 0:00:05.2]}
95. Qg2# {[%clk 0:00:34.8]} 1-0

[Event "Early-Titled-Tuesday-Blitz-April-16-2024"]
[Site "Chess.com"]
[Date "2024.04.16"]
[Round "11"]
[White "MITerryble"]
[Black "ActorXu"]
[Result "1/2-1/2"]
[WhiteElo "3043"]
[BlackElo "2855"]
[TimeControl "180+1"]
[EndTime "10:15:00 PDT"]
[Termination "Game drawn by 50-move rule"]

1. Nf3 {[%clk 0:02:53.9]} 1... d5 {[%clk 0:02:59.5]} 2. c4 {[%clk 0:02:51.7]}
2... e6 {[%clk 0:02:58.6]} 3. b3 {[%clk 0:02:50.2]} 3... d4 {[%clk 0:02:55.8]}
4. Bb2 {[%clk 0:02:50]} 4... c5 {[%clk 0:02:56.3]} 5. e3 {[%clk 0:02:50.6]} 5...
Nc6 {[%clk 0:02:56.6]} 6. a3 {[%clk 0:02:27.8]} 6... e5 {[%clk 0:02:51]} 7. exd4
{[%clk 0:02:24.6]} 7... exd4 {[%clk 0:02:50.5]} 8. d3 {[%clk 0:02:19.5]} 8...
Nf6 {[%clk 0:02:46.7]} 9. Be2 {[%clk 0:02:19.1]} 9... Bd6 {[%clk 0:02:44.1]} 10.
O-O {[%clk 0:02:19.5]} 10... a5 {[%clk 0:02:40.8]} 11. Nbd2 {[%clk 0:02:18.5]}
11... O-O {[%clk 0:02:40.8]} 12. Ng5 {[%clk 0:02:15.5]} 12... Bf5 {[%clk
0:02:28.6]} 13. Nge4 {[%clk 0:02:11.3]} 13... Nxe4 {[%clk 0:02:27.5]} 14. Nxe4
{[%clk 0:02:00.6]} 14... Bxe4 {[%clk 0:02:15]} 15. dxe4 {[%clk 0:02:01.5]} 15...
Qh4 {[%clk 0:02:14.7]} 16. g3 {[%clk 0:02:02.1]} 16... Qxe4 {[%clk 0:02:14.7]}
17. Bf3 {[%clk 0:02:02.7]} 17... Qg6 {[%clk 0:02:11.9]} 18. Re1 {[%clk
0:01:57.7]} 18... Rfe8 {[%clk 0:02:07.7]} 19. Bd5 {[%clk 0:01:35.2]} 19... Rxe1+
{[%clk 0:01:50.6]} 20. Qxe1 {[%clk 0:01:36.1]} 20... Ne5 {[%clk 0:01:51.1]} 21.
Bxb7 {[%clk 0:01:24.8]} 21... Rb8 {[%clk 0:01:41.4]} 22. Bd5 {[%clk 0:01:23.9]}
22... Rxb3 {[%clk 0:01:35.3]} 23. Bc1 {[%clk 0:01:24.3]} 23... h5 {[%clk
0:01:07.7]} 24. Qxa5 {[%clk 0:01:15.1]} 24... Rb1 {[%clk 0:00:52.6]} 25. Qa8+
{[%clk 0:01:01.8]} 25... Bf8 {[%clk 0:00:51]} 26. Be4 {[%clk 0:00:54.7]} 26...
Rxa1 {[%clk 0:00:24]} 27. Bxg6 {[%clk 0:00:55]} 27... Rxc1+ {[%clk 0:00:24.4]}
28. Kg2 {[%clk 0:00:55.9]} 28... Nxg6 {[%clk 0:00:24.1]} 29. Qd5 {[%clk
0:00:56.5]} 29... Ra1 {[%clk 0:00:23]} 30. Qxh5 {[%clk 0:00:55.3]} 30... Rxa3
{[%clk 0:00:22.7]} 31. Qd5 {[%clk 0:00:56]} 31... Rc3 {[%clk 0:00:19.6]} 32. h4
{[%clk 0:00:55.2]} 32... Ne7 {[%clk 0:00:13.5]} 33. Qxc5 {[%clk 0:00:55.2]}
33... d3 {[%clk 0:00:13.9]} 34. Qd4 {[%clk 0:00:55.4]} 34... Ra3 {[%clk
0:00:13.7]} 35. Qd7 {[%clk 0:00:54.7]} 35... Rc3 {[%clk 0:00:10.7]} 36. h5
{[%clk 0:00:54]} 36... Rxc4 {[%clk 0:00:07.9]} 37. Qxd3 {[%clk 0:00:54.1]} 37...
Rc5 {[%clk 0:00:08.3]} 38. g4 {[%clk 0:00:42.2]} 38... Nd5 {[%clk 0:00:08.6]}
39. Qa6 {[%clk 0:00:42]} 39... Nf4+ {[%clk 0:00:08.7]} 40. Kf3 {[%clk 0:00:42]}
40... Ne6 {[%clk 0:00:08.3]} 41. Qa8 {[%clk 0:00:39.3]} 41... Rc3+ {[%clk
0:00:07.8]} 42. Ke4 {[%clk 0:00:34.3]} 42... Rc4+ {[%clk 0:00:07.6]} 43. Kf3
{[%clk 0:00:33.9]} 43... Kh7 {[%clk 0:00:06.9]} 44. Qd5 {[%clk 0:00:26.6]} 44...
Rd4 {[%clk 0:00:06.3]} 45. Qf5+ {[%clk 0:00:18.5]} 45... Kg8 {[%clk 0:00:06.6]}
46. Qa5 {[%clk 0:00:19.4]} 46... Rd3+ {[%clk 0:00:06.1]} 47. Ke4 {[%clk
0:00:18.4]} 47... Rd4+ {[%clk 0:00:06.5]} 48. Kf3 {[%clk 0:00:18.9]} 48... Bd6
{[%clk 0:00:05.6]} 49. g5 {[%clk 0:00:18.5]} 49... Rd3+ {[%clk 0:00:04.9]} 50.
Ke4 {[%clk 0:00:17.2]} 50... Rd4+ {[%clk 0:00:05.1]} 51. Kf3 {[%clk 0:00:17.4]}
51... Rf4+ {[%clk 0:00:03.9]} 52. Ke2 {[%clk 0:00:16.5]} 52... Bf8 {[%clk
0:00:04]} 53. g6 {[%clk 0:00:16.6]} 53... fxg6 {[%clk 0:00:04]} 54. hxg6 {[%clk
0:00:17.5]} 54... Rf6 {[%clk 0:00:04.4]} 55. Qd5 {[%clk 0:00:10.7]} 55... Rxg6
{[%clk 0:00:04.6]} 56. f4 {[%clk 0:00:11.4]} 56... Rf6 {[%clk 0:00:05.1]} 57. f5
{[%clk 0:00:11.7]} 57... Rxf5 {[%clk 0:00:03.1]} 58. Qxe6+ {[%clk 0:00:12.2]}
58... Rf7 {[%clk 0:00:03.6]} 59. Ke3 {[%clk 0:00:12.1]} 59... Be7 {[%clk
0:00:03.2]} 60. Ke4 {[%clk 0:00:12.3]} 60... Bf6 {[%clk 0:00:03.7]} 61. Kf5
{[%clk 0:00:11.8]} 61... Kf8 {[%clk 0:00:04.1]} 62. Kg6 {[%clk 0:00:11.7]} 62...
Re7 {[%clk 0:00:04.6]} 63. Qd5 {[%clk 0:00:11.9]} 63... Ke8 {[%clk 0:00:03.7]}
64. Qd6 {[%clk 0:00:12.3]} 64... Rd7 {[%clk 0:00:03.8]} 65. Qc6 {[%clk
0:00:12.8]} 65... Kd8 {[%clk 0:00:04.2]} 66. Kf5 {[%clk 0:00:12.6]} 66... Re7
{[%clk 0:00:04.3]} 67. Kg6 {[%clk 0:00:11.1]} 67... Re5 {[%clk 0:00:04]} 68. Kf7
{[%clk 0:00:10.9]} 68... Re7+ {[%clk 0:00:04.4]} 69. Kf8 {[%clk 0:00:11.6]}
69... Re5 {[%clk 0:00:04]} 70. Qb7 {[%clk 0:00:10.7]} 70... Re7 {[%clk
0:00:03.7]} 71. Qd5+ {[%clk 0:00:09.2]} 71... Kc7 {[%clk 0:00:03.4]} 72. Kg8
{[%clk 0:00:09.6]} 72... Rd7 {[%clk 0:00:03.2]} 73. Qc5+ {[%clk 0:00:09.6]}
73... Kb7 {[%clk 0:00:03.5]} 74. Kh7 {[%clk 0:00:10.5]} 74... Rc7 {[%clk
0:00:03.8]} 75. Qb5+ {[%clk 0:00:11]} 75... Kc8 {[%clk 0:00:03.9]} 76. Kg6
{[%clk 0:00:11.9]} 76... Rd7 {[%clk 0:00:04]} 77. Kf5 {[%clk 0:00:11.2]} 77...
Re7 {[%clk 0:00:04.5]} 78. Qb6 {[%clk 0:00:11.4]} 78... Kd7 {[%clk 0:00:04.6]}
79. Qb7+ {[%clk 0:00:08.3]} 79... Kd6 {[%clk 0:00:05]} 80. Qb4+ {[%clk
0:00:08.5]} 80... Kd7 {[%clk 0:00:05.4]} 81. Qb5+ {[%clk 0:00:08.7]} 81... Kd6
{[%clk 0:00:05.7]} 82. Qd3+ {[%clk 0:00:09.1]} 82... Kc6 {[%clk 0:00:05.7]} 83.
Qc2+ {[%clk 0:00:09.4]} 83... Kd6 {[%clk 0:00:05.6]} 84. Qd1+ {[%clk 0:00:09.4]}
84... Kc6 {[%clk 0:00:06.2]} 85. Qh1+ {[%clk 0:00:10.1]} 85... Kd6 {[%clk
0:00:06.6]} 86. Qh2+ {[%clk 0:00:10.5]} 86... Kc6 {[%clk 0:00:06.9]} 87. Qa2
{[%clk 0:00:11.4]} 87... Kd6 {[%clk 0:00:07]} 88. Kg6 {[%clk 0:00:11.7]} 88...
Kc6 {[%clk 0:00:07.5]} 89. Qc4+ {[%clk 0:00:11.7]} 89... Kd6 {[%clk 0:00:07.9]}
90. Kf5 {[%clk 0:00:12.3]} 90... Re5+ {[%clk 0:00:06.4]} 91. Kf4 {[%clk
0:00:11.9]} 91... Re7 {[%clk 0:00:07.1]} 92. Qb4+ {[%clk 0:00:12.1]} 92... Kc6
{[%clk 0:00:07.1]} 93. Qa4+ {[%clk 0:00:12]} 93... Kd6 {[%clk 0:00:07.3]} 94.
Qb5 {[%clk 0:00:11.4]} 94... Re5 {[%clk 0:00:06.3]} 95. Qb6+ {[%clk 0:00:11.4]}
95... Kd7 {[%clk 0:00:06.6]} 96. Kg4 {[%clk 0:00:02.2]} 96... Kc8 {[%clk
0:00:06.4]} 97. Qc6+ {[%clk 0:00:02.5]} 97... Kd8 {[%clk 0:00:06.8]} 98. Kf4
{[%clk 0:00:03.4]} 98... Ke7 {[%clk 0:00:06.8]} 99. Qc7+ {[%clk 0:00:03.7]}
99... Ke8 {[%clk 0:00:06.3]} 100. Kf3 {[%clk 0:00:02.9]} 100... Kf8 {[%clk
0:00:05.9]} 101. Qc8+ {[%clk 0:00:02.8]} 101... Ke7 {[%clk 0:00:06.3]} 102. Kf4
{[%clk 0:00:03.1]} 102... Kd6 {[%clk 0:00:06.1]} 103. Qf8+ {[%clk 0:00:02.3]}
103... Kd7 {[%clk 0:00:06.1]} 104. Qa8 {[%clk 0:00:02.6]} 104... Kc7 {[%clk
0:00:06]} 105. Qa7+ {[%clk 0:00:02.9]} 105... Kc6 {[%clk 0:00:06.2]} 106. Kf3
{[%clk 0:00:03.5]} 106... Kb5 {[%clk 0:00:05]} 107. Qc7 {[%clk 0:00:03.1]}
107... Kb4 {[%clk 0:00:03.1]} 108. Qc6 {[%clk 0:00:03.3]} 1/2-1/2